[Event "Late-Titled-Tuesday-Blitz-August-29-2023"]
[Site "Chess.com"]
[Date "2023.08.29"]
[Round "10"]
[White "tptagain"]
[Black "adiosabu"]
[Result "1-0"]
[WhiteElo "2885"]
[BlackElo "2639"]
[TimeControl "180+1"]
[EndTime "15:52:46 PDT"]
[Termination "tptagain won by checkmate"]

1. d3 {[%clk 0:03:00.9]} 1... d5 {[%clk 0:02:58.4]} 2. f4 {[%clk 0:03:01.4]}
2... Nh6 {[%clk 0:02:56.6]} 3. Nf3 {[%clk 0:03:00.8]} 3... g6 {[%clk 0:02:56.8]}
4. e4 {[%clk 0:02:59.5]} 4... dxe4 {[%clk 0:02:56.4]} 5. dxe4 {[%clk 0:03:00.4]}
5... Qxd1+ {[%clk 0:02:56.6]} 6. Kxd1 {[%clk 0:03:01.3]} 6... Ng4 {[%clk
0:02:53.5]} 7. Ke1 {[%clk 0:03:00.5]} 7... Nc6 {[%clk 0:02:52.2]} 8. Bd3 {[%clk
0:02:59.3]} 8... Bh6 {[%clk 0:02:44.3]} 9. h3 {[%clk 0:02:55.9]} 9... Nge5
{[%clk 0:02:40.9]} 10. Nxe5 {[%clk 0:02:49.4]} 10... Nxe5 {[%clk 0:02:40.2]} 11.
Be2 {[%clk 0:02:46.8]} 11... Nc6 {[%clk 0:02:32.2]} 12. Na3 {[%clk 0:02:36.8]}
12... a6 {[%clk 0:02:19.7]} 13. g4 {[%clk 0:02:33.4]} 13... Bg7 {[%clk
0:02:13.1]} 14. c3 {[%clk 0:02:33.4]} 14... h6 {[%clk 0:02:11]} 15. Nc4 {[%clk
0:02:23.5]} 15... b5 {[%clk 0:02:04.9]} 16. Ne3 {[%clk 0:02:23.5]} 16... e6
{[%clk 0:02:05.6]} 17. Bd2 {[%clk 0:02:19.1]} 17... g5 {[%clk 0:02:01.6]} 18.
Ng2 {[%clk 0:02:10]} 18... Bb7 {[%clk 0:01:58.1]} 19. Rf1 {[%clk 0:01:56]} 19...
Rd8 {[%clk 0:01:14.2]} 20. Be3 {[%clk 0:01:55.2]} 20... Bf6 {[%clk 0:01:06]} 21.
Kf2 {[%clk 0:01:19.1]} 21... Kf8 {[%clk 0:00:54.6]} 22. Kg3 {[%clk 0:01:00.8]}
22... Kg7 {[%clk 0:00:54.2]} 23. a4 {[%clk 0:00:52.1]} 23... b4 {[%clk 0:00:53]}
24. cxb4 {[%clk 0:00:52.5]} 24... Nxb4 {[%clk 0:00:51.3]} 25. Rac1 {[%clk
0:00:52]} 25... Rd7 {[%clk 0:00:44.4]} 26. Rc4 {[%clk 0:00:33.3]} 26... a5
{[%clk 0:00:44]} 27. Rc5 {[%clk 0:00:25.6]} 27... Ra8 {[%clk 0:00:38.6]} 28.
fxg5 {[%clk 0:00:20]} 28... hxg5 {[%clk 0:00:38.7]} 29. Rxf6 {[%clk 0:00:17.6]}
29... Kxf6 {[%clk 0:00:36.9]} 30. Bxg5+ {[%clk 0:00:18]} 30... Kg7 {[%clk
0:00:37.3]} 31. Nf4 {[%clk 0:00:17.2]} 31... Kf8 {[%clk 0:00:21.1]} 32. Nh5
{[%clk 0:00:17.1]} 32... Rd6 {[%clk 0:00:18.9]} 33. Rxc7 {[%clk 0:00:16.8]}
33... Bxe4 {[%clk 0:00:18.2]} 34. Be7+ {[%clk 0:00:16.8]} 34... Ke8 {[%clk
0:00:18.5]} 35. Nf6# {[%clk 0:00:16.8]} 1-0

[Event "Late-Titled-Tuesday-Blitz-August-29-2023"]
[Site "Chess.com"]
[Date "2023.08.29"]
[Round "10"]
[White "simplerXiao"]
[Black "psychokiller48"]
[Result "0-1"]
[WhiteElo "2532"]
[BlackElo "2676"]
[TimeControl "180+1"]
[EndTime "15:52:46 PDT"]
[Termination "psychokiller48 won by resignation"]

1. e4 {[%clk 0:03:00.9]} 1... e5 {[%clk 0:02:59.1]} 2. Bc4 {[%clk 0:02:59.7]}
2... Nf6 {[%clk 0:02:57]} 3. Nc3 {[%clk 0:02:58.7]} 3... Bc5 {[%clk 0:02:55.7]}
4. f4 {[%clk 0:02:55.4]} 4... d6 {[%clk 0:02:51.5]} 5. Nf3 {[%clk 0:02:54.9]}
5... Nc6 {[%clk 0:02:51.1]} 6. d3 {[%clk 0:02:54.8]} 6... a6 {[%clk 0:02:50]} 7.
h3 {[%clk 0:02:53.7]} 7... Nd4 {[%clk 0:02:41.2]} 8. fxe5 {[%clk 0:02:50.4]}
8... dxe5 {[%clk 0:02:27.8]} 9. Nxd4 {[%clk 0:02:31.5]} 9... Bxd4 {[%clk
0:02:17.3]} 10. Qf3 {[%clk 0:02:30.3]} 10... h6 {[%clk 0:02:12.5]} 11. Bd2
{[%clk 0:02:26.4]} 11... c6 {[%clk 0:02:12.1]} 12. g4 {[%clk 0:02:18]} 12... b5
{[%clk 0:02:06.1]} 13. Bb3 {[%clk 0:02:17]} 13... Qe7 {[%clk 0:01:36.1]} 14. a4
{[%clk 0:02:08.7]} 14... Ra7 {[%clk 0:01:16.5]} 15. axb5 {[%clk 0:02:06.8]}
15... axb5 {[%clk 0:01:16.3]} 16. Ke2 {[%clk 0:02:04.7]} 16... Nh7 {[%clk
0:01:06.3]} 17. Rxa7 {[%clk 0:01:59.8]} 17... Bxa7 {[%clk 0:00:59.1]} 18. h4
{[%clk 0:01:57.4]} 18... Nf6 {[%clk 0:00:56.3]} 19. Rg1 {[%clk 0:01:55.8]} 19...
h5 {[%clk 0:00:55.3]} 20. Be3 {[%clk 0:01:50.9]} 20... Bxg4 {[%clk 0:00:51.5]}
21. Rxg4 {[%clk 0:01:47.4]} 21... Nxg4 {[%clk 0:00:50.4]} 22. Bg5 {[%clk
0:01:40]} 22... Qd7 {[%clk 0:00:45.1]} 23. Kd1 {[%clk 0:01:33.6]} 23... O-O
{[%clk 0:00:42.8]} 24. Ne2 {[%clk 0:01:30.4]} 24... g6 {[%clk 0:00:41.4]} 25.
Kc1 {[%clk 0:01:23.3]} 25... Bc5 {[%clk 0:00:40.6]} 26. Ng3 {[%clk 0:01:21.8]}
26... Be7 {[%clk 0:00:37.6]} 27. Kb1 {[%clk 0:01:07.1]} 27... Bxg5 {[%clk
0:00:35.8]} 28. hxg5 {[%clk 0:01:07.2]} 28... Qe7 {[%clk 0:00:36.2]} 29. Nxh5
{[%clk 0:01:04.2]} 29... gxh5 {[%clk 0:00:30.5]} 30. g6 {[%clk 0:01:04.2]} 30...
Qf6 {[%clk 0:00:27.6]} 31. gxf7+ {[%clk 0:01:02.5]} 31... Kg7 {[%clk 0:00:27.6]}
32. Qh3 {[%clk 0:01:00.5]} 32... Qg5 {[%clk 0:00:25.9]} 33. Be6 {[%clk
0:00:57.1]} 33... Nf6 {[%clk 0:00:25.1]} 34. b3 {[%clk 0:00:55.3]} 34... Qg1+
{[%clk 0:00:21.2]} 35. Kb2 {[%clk 0:00:52.3]} 35... Qd4+ {[%clk 0:00:21]} 36.
Kc1 {[%clk 0:00:50.2]} 36... Qg1+ {[%clk 0:00:21]} 37. Kb2 {[%clk 0:00:49.9]}
37... b4 {[%clk 0:00:20.8]} 38. Qh4 {[%clk 0:00:44.3]} 38... Ra8 {[%clk
0:00:20]} 39. f8=Q+ {[%clk 0:00:39.8]} 39... Rxf8 {[%clk 0:00:19.2]} 40. c3
{[%clk 0:00:34.5]} 40... Qg2+ {[%clk 0:00:18.5]} 41. Kc1 {[%clk 0:00:30.6]}
41... bxc3 {[%clk 0:00:19.4]} 0-1

[Event "Late-Titled-Tuesday-Blitz-August-29-2023"]
[Site "Chess.com"]
[Date "2023.08.29"]
[Round "10"]
[White "Ncatt"]
[Black "Fh2411"]
[Result "1-0"]
[WhiteElo "2477"]
[BlackElo "2624"]
[TimeControl "180+1"]
[EndTime "15:52:53 PDT"]
[Termination "Ncatt won by resignation"]

1. e4 {[%clk 0:03:00]} 1... c6 {[%clk 0:02:59.2]} 2. d4 {[%clk 0:02:59.9]} 2...
d5 {[%clk 0:02:59.8]} 3. exd5 {[%clk 0:03:00.8]} 3... cxd5 {[%clk 0:03:00.7]} 4.
Bd3 {[%clk 0:03:01.7]} 4... Nc6 {[%clk 0:03:01.2]} 5. c3 {[%clk 0:03:01.8]} 5...
Qc7 {[%clk 0:03:01.5]} 6. h3 {[%clk 0:02:58.6]} 6... g6 {[%clk 0:03:01.7]} 7.
Nf3 {[%clk 0:02:58]} 7... Bf5 {[%clk 0:03:01.7]} 8. O-O {[%clk 0:02:57.2]} 8...
Nf6 {[%clk 0:03:00.8]} 9. Re1 {[%clk 0:02:54.4]} 9... Bxd3 {[%clk 0:02:59.4]}
10. Qxd3 {[%clk 0:02:54.3]} 10... Bg7 {[%clk 0:03:00.1]} 11. Nbd2 {[%clk
0:02:49.7]} 11... O-O {[%clk 0:03:00.5]} 12. a4 {[%clk 0:02:49.3]} 12... Rfe8
{[%clk 0:02:56.3]} 13. b4 {[%clk 0:02:33.9]} 13... a5 {[%clk 0:02:42.9]} 14. b5
{[%clk 0:02:33.4]} 14... Na7 {[%clk 0:02:42.8]} 15. Ba3 {[%clk 0:02:30.1]} 15...
Nc8 {[%clk 0:02:27.9]} 16. c4 {[%clk 0:02:23.6]} 16... dxc4 {[%clk 0:02:27.1]}
17. Nxc4 {[%clk 0:02:24.5]} 17... Nd5 {[%clk 0:02:22.7]} 18. Rac1 {[%clk
0:02:21.9]} 18... Qd8 {[%clk 0:02:22.9]} 19. Nce5 {[%clk 0:02:18]} 19... Ncb6
{[%clk 0:02:18.7]} 20. Qb3 {[%clk 0:02:15.8]} 20... e6 {[%clk 0:02:18.5]} 21.
Rc2 {[%clk 0:02:09.7]} 21... Rc8 {[%clk 0:01:58.2]} 22. Bc5 {[%clk 0:02:09.3]}
22... Nd7 {[%clk 0:01:57.3]} 23. Nxd7 {[%clk 0:02:06.6]} 23... Qxd7 {[%clk
0:01:58.2]} 24. b6 {[%clk 0:02:01.1]} 24... Nf4 {[%clk 0:01:30]} 25. Rb1 {[%clk
0:01:51]} 25... Qd5 {[%clk 0:01:18.6]} 26. Qxd5 {[%clk 0:01:47.8]} 26... Nxd5
{[%clk 0:01:11.5]} 27. Rb5 {[%clk 0:01:47.2]} 27... Ra8 {[%clk 0:01:11.4]} 28.
Nd2 {[%clk 0:01:37.3]} 28... Rec8 {[%clk 0:01:01.5]} 29. Nc4 {[%clk 0:01:28.8]}
29... Nb4 {[%clk 0:00:51.3]} 30. Rd2 {[%clk 0:01:20.1]} 30... Nc6 {[%clk
0:00:49.5]} 31. Nd6 {[%clk 0:01:16.9]} 31... Rcb8 {[%clk 0:00:49.5]} 32. d5
{[%clk 0:01:15.1]} 32... exd5 {[%clk 0:00:48.2]} 33. Rxd5 {[%clk 0:01:16]} 33...
Rd8 {[%clk 0:00:47.3]} 34. Be3 {[%clk 0:01:12.6]} 34... Rd7 {[%clk 0:00:46.2]}
35. Nc4 {[%clk 0:01:08.2]} 35... Rxd5 {[%clk 0:00:42.5]} 36. Rxd5 {[%clk
0:01:09.1]} 36... Bc3 {[%clk 0:00:43]} 37. Rd7 {[%clk 0:01:05]} 37... Rc8 {[%clk
0:00:24.7]} 38. Rxb7 {[%clk 0:01:02.8]} 38... Ne5 {[%clk 0:00:18.7]} 39. Rc7
{[%clk 0:00:56.3]} 39... Rd8 {[%clk 0:00:18.9]} 40. b7 {[%clk 0:00:52.3]} 40...
Nxc4 {[%clk 0:00:13.2]} 41. Rc8 {[%clk 0:00:48.8]} 1-0

[Event "Late-Titled-Tuesday-Blitz-August-29-2023"]
[Site "Chess.com"]
[Date "2023.08.29"]
[Round "10"]
[White "GMMikhailKazakov"]
[Black "ChEsper99"]
[Result "1-0"]
[WhiteElo "2340"]
[BlackElo "2163"]
[TimeControl "180+1"]
[EndTime "15:52:53 PDT"]
[Termination "GMMikhailKazakov won on time"]

1. d4 {[%clk 0:02:53.6]} 1... d5 {[%clk 0:02:59.4]} 2. Nf3 {[%clk 0:02:52.8]}
2... c6 {[%clk 0:02:58.2]} 3. g3 {[%clk 0:02:52.9]} 3... Nf6 {[%clk 0:02:54.5]}
4. Bg2 {[%clk 0:02:49.6]} 4... g6 {[%clk 0:02:54.4]} 5. O-O {[%clk 0:02:48.5]}
5... Bg7 {[%clk 0:02:54.5]} 6. c3 {[%clk 0:02:42.7]} 6... O-O {[%clk 0:02:53.3]}
7. a4 {[%clk 0:02:42.2]} 7... a5 {[%clk 0:02:51.2]} 8. Bf4 {[%clk 0:02:36.4]}
8... Bf5 {[%clk 0:02:48.9]} 9. Nh4 {[%clk 0:02:33.7]} 9... Be6 {[%clk
0:02:39.7]} 10. Nd2 {[%clk 0:02:32.4]} 10... h6 {[%clk 0:02:34.2]} 11. Nhf3
{[%clk 0:02:28.2]} 11... Bf5 {[%clk 0:02:33.6]} 12. Ne5 {[%clk 0:02:24.3]} 12...
Nbd7 {[%clk 0:02:30.2]} 13. Nxd7 {[%clk 0:02:16.3]} 13... Qxd7 {[%clk
0:02:27.1]} 14. Be5 {[%clk 0:02:16]} 14... Bh3 {[%clk 0:02:19.4]} 15. Bxf6
{[%clk 0:02:04.1]} 15... Bxf6 {[%clk 0:02:17]} 16. e4 {[%clk 0:02:03.5]} 16...
Bxg2 {[%clk 0:02:13.1]} 17. Kxg2 {[%clk 0:02:04.4]} 17... dxe4 {[%clk
0:02:10.6]} 18. Nxe4 {[%clk 0:01:56]} 18... Bg7 {[%clk 0:02:06.6]} 19. Qf3
{[%clk 0:01:53.5]} 19... b6 {[%clk 0:02:00.6]} 20. Rfe1 {[%clk 0:01:51.2]} 20...
Rfe8 {[%clk 0:01:53.8]} 21. h4 {[%clk 0:01:48.1]} 21... Qd5 {[%clk 0:01:50.1]}
22. h5 {[%clk 0:01:43.5]} 22... Qxh5 {[%clk 0:01:38.9]} 23. Qxh5 {[%clk
0:01:41.8]} 23... gxh5 {[%clk 0:01:39.8]} 24. f4 {[%clk 0:01:38.2]} 24... c5
{[%clk 0:01:05.5]} 25. dxc5 {[%clk 0:01:30.8]} 25... f5 {[%clk 0:00:56.8]} 26.
Nd2 {[%clk 0:01:30.9]} 26... bxc5 {[%clk 0:00:57]} 27. Nc4 {[%clk 0:01:30.5]}
27... Kf7 {[%clk 0:00:46.7]} 28. Rad1 {[%clk 0:01:24.2]} 28... Rad8 {[%clk
0:00:39.4]} 29. Kf3 {[%clk 0:01:18]} 29... Rxd1 {[%clk 0:00:35.7]} 30. Rxd1
{[%clk 0:01:17.8]} 30... Bf6 {[%clk 0:00:25.5]} 31. Rd5 {[%clk 0:01:06.5]} 31...
h4 {[%clk 0:00:09.7]} 32. gxh4 {[%clk 0:01:04.4]} 32... Bxh4 {[%clk 0:00:10.6]}
33. Rxf5+ {[%clk 0:01:03.2]} 33... Kg6 {[%clk 0:00:10.9]} 34. Rxc5 {[%clk
0:01:00.9]} 34... Bf6 {[%clk 0:00:06.5]} 35. Rxa5 {[%clk 0:00:51.4]} 35... h5
{[%clk 0:00:06.3]} 36. Ne5+ {[%clk 0:00:49.7]} 36... Kg7 {[%clk 0:00:04.2]} 37.
Rb5 {[%clk 0:00:40.5]} 37... h4 {[%clk 0:00:04.3]} 38. Kg4 {[%clk 0:00:37.3]}
38... Rh8 {[%clk 0:00:03.7]} 39. Kh3 {[%clk 0:00:37.2]} 1-0

[Event "Late-Titled-Tuesday-Blitz-August-29-2023"]
[Site "Chess.com"]
[Date "2023.08.29"]
[Round "10"]
[White "djano"]
[Black "zeitnot2006"]
[Result "0-1"]
[WhiteElo "2588"]
[BlackElo "2758"]
[TimeControl "180+1"]
[EndTime "15:52:54 PDT"]
[Termination "zeitnot2006 won on time"]

1. e4 {[%clk 0:03:00.9]} 1... c5 {[%clk 0:02:57]} 2. Nc3 {[%clk 0:03:00.1]} 2...
Nc6 {[%clk 0:02:56.9]} 3. Bb5 {[%clk 0:02:59.9]} 3... g6 {[%clk 0:02:54.9]} 4.
Bxc6 {[%clk 0:02:57.7]} 4... bxc6 {[%clk 0:02:55.8]} 5. d3 {[%clk 0:02:57.8]}
5... Bg7 {[%clk 0:02:56.2]} 6. Be3 {[%clk 0:02:57.3]} 6... Rb8 {[%clk
0:02:54.7]} 7. Qc1 {[%clk 0:02:43.1]} 7... d5 {[%clk 0:02:41.8]} 8. Bf4 {[%clk
0:02:29.4]} 8... e5 {[%clk 0:02:31.6]} 9. Bd2 {[%clk 0:02:26.3]} 9... Ne7 {[%clk
0:02:30.6]} 10. Nge2 {[%clk 0:02:21.4]} 10... O-O {[%clk 0:02:29.8]} 11. O-O
{[%clk 0:02:20.9]} 11... f5 {[%clk 0:02:30]} 12. Bg5 {[%clk 0:01:56.3]} 12...
Be6 {[%clk 0:02:18.9]} 13. Na4 {[%clk 0:01:47.5]} 13... Qd6 {[%clk 0:02:15.8]}
14. b3 {[%clk 0:01:42.3]} 14... Nc8 {[%clk 0:01:55.1]} 15. Qa3 {[%clk
0:01:33.5]} 15... f4 {[%clk 0:01:55.3]} 16. f3 {[%clk 0:01:27.7]} 16... Rb5
{[%clk 0:01:38.3]} 17. c4 {[%clk 0:01:06.2]} 17... Rb4 {[%clk 0:01:36.3]} 18.
Bh4 {[%clk 0:01:00.9]} 18... d4 {[%clk 0:01:30.7]} 19. Be1 {[%clk 0:00:58.1]}
19... g5 {[%clk 0:01:06.3]} 20. Nxc5 {[%clk 0:00:57.1]} 20... Rb8 {[%clk
0:00:57]} 21. Qa5 {[%clk 0:00:57.1]} 21... g4 {[%clk 0:00:52.4]} 22. Bb4 {[%clk
0:00:42.2]} 22... Rxb4 {[%clk 0:00:51.8]} 23. Qxb4 {[%clk 0:00:43.1]} 23... Rf6
{[%clk 0:00:40.8]} 24. Na6 {[%clk 0:00:36.5]} 24... Qd7 {[%clk 0:00:35]} 25. Nb8
{[%clk 0:00:31.5]} 25... Qc7 {[%clk 0:00:31]} 26. Na6 {[%clk 0:00:31.5]} 26...
Qd8 {[%clk 0:00:25.9]} 27. Kh1 {[%clk 0:00:27.3]} 27... Rh6 {[%clk 0:00:23.6]}
28. Qe1 {[%clk 0:00:19.3]} 28... g3 {[%clk 0:00:20.5]} 29. Nxg3 {[%clk
0:00:18.3]} 29... Qh4 {[%clk 0:00:17.3]} 30. h3 {[%clk 0:00:16.3]} 30... fxg3
{[%clk 0:00:17.3]} 31. f4 {[%clk 0:00:08.9]} 31... Bxh3 {[%clk 0:00:16.4]} 32.
Rf3 {[%clk 0:00:02.2]} 32... Bg4+ {[%clk 0:00:15.4]} 0-1

[Event "Late-Titled-Tuesday-Blitz-August-29-2023"]
[Site "Chess.com"]
[Date "2023.08.29"]
[Round "10"]
[White "cthulhuuu"]
[Black "jamengrand"]
[Result "1-0"]
[WhiteElo "2478"]
[BlackElo "2357"]
[TimeControl "180+1"]
[EndTime "15:52:54 PDT"]
[Termination "cthulhuuu won on time"]

1. e4 {[%clk 0:03:00]} 1... e5 {[%clk 0:03:00.3]} 2. Nf3 {[%clk 0:02:59]} 2...
Nc6 {[%clk 0:03:00.7]} 3. Bb5 {[%clk 0:02:58.8]} 3... a6 {[%clk 0:03:00.9]} 4.
Bxc6 {[%clk 0:02:59.4]} 4... dxc6 {[%clk 0:03:00.9]} 5. O-O {[%clk 0:03:00.3]}
5... f6 {[%clk 0:03:00.2]} 6. d4 {[%clk 0:03:00.6]} 6... Bg4 {[%clk 0:02:58.1]}
7. dxe5 {[%clk 0:02:59.4]} 7... Qxd1 {[%clk 0:02:49.8]} 8. Rxd1 {[%clk 0:03:00]}
8... fxe5 {[%clk 0:02:49]} 9. Rd3 {[%clk 0:02:59.8]} 9... Bd6 {[%clk 0:02:45.2]}
10. Nbd2 {[%clk 0:02:59.1]} 10... Nf6 {[%clk 0:02:41.9]} 11. Nc4 {[%clk
0:02:59.3]} 11... Bxf3 {[%clk 0:02:14.6]} 12. gxf3 {[%clk 0:03:00.1]} 12...
O-O-O {[%clk 0:02:03.7]} 13. a4 {[%clk 0:02:42.2]} 13... Rhf8 {[%clk 0:01:31]}
14. Bg5 {[%clk 0:02:39.3]} 14... h6 {[%clk 0:01:27.4]} 15. Bh4 {[%clk
0:02:39.3]} 15... g5 {[%clk 0:00:59.7]} 16. Bg3 {[%clk 0:02:39]} 16... Nh5
{[%clk 0:00:59.9]} 17. Rad1 {[%clk 0:02:35.7]} 17... Nxg3 {[%clk 0:00:53.4]} 18.
hxg3 {[%clk 0:02:36.4]} 18... Rde8 {[%clk 0:00:47.1]} 19. Rxd6 {[%clk
0:02:31.3]} 19... cxd6 {[%clk 0:00:45.5]} 20. Nxd6+ {[%clk 0:02:31.3]} 20... Kc7
{[%clk 0:00:45.8]} 21. Nxe8+ {[%clk 0:02:31]} 21... Rxe8 {[%clk 0:00:46.3]} 22.
Kg2 {[%clk 0:02:31.3]} 22... Re6 {[%clk 0:00:45]} 23. Kh3 {[%clk 0:02:11.9]}
23... h5 {[%clk 0:00:42.1]} 24. Kg2 {[%clk 0:02:11]} 24... b5 {[%clk 0:00:32.4]}
25. a5 {[%clk 0:02:07]} 25... b4 {[%clk 0:00:32.9]} 26. Rh1 {[%clk 0:02:05.9]}
26... Rh6 {[%clk 0:00:33]} 27. f4 {[%clk 0:02:05.9]} 27... gxf4 {[%clk
0:00:22.4]} 28. gxf4 {[%clk 0:02:05.8]} 28... Kd6 {[%clk 0:00:20.4]} 29. f5
{[%clk 0:02:02.7]} 29... Ke7 {[%clk 0:00:18]} 30. f4 {[%clk 0:02:00.3]} 30...
Kf6 {[%clk 0:00:17.1]} 31. Kf3 {[%clk 0:02:00.1]} 31... h4 {[%clk 0:00:17.5]}
32. Kg4 {[%clk 0:01:54.7]} 32... exf4 {[%clk 0:00:16.3]} 33. Kxf4 {[%clk
0:01:53.8]} 33... h3 {[%clk 0:00:14.7]} 34. Kg3 {[%clk 0:01:45.3]} 34... Ke5
{[%clk 0:00:14]} 35. Rxh3 {[%clk 0:01:44]} 35... Rd6 {[%clk 0:00:14.1]} 36. Kf3
{[%clk 0:01:30]} 36... b3 {[%clk 0:00:09.2]} 37. Rh2 {[%clk 0:01:21.4]} 37...
bxc2 {[%clk 0:00:08.5]} 38. Rxc2 {[%clk 0:01:21.5]} 38... Rd3+ {[%clk
0:00:08.5]} 39. Ke2 {[%clk 0:01:21.6]} 39... Rb3 {[%clk 0:00:07.3]} 40. Rxc6
{[%clk 0:01:15.4]} 40... Rxb2+ {[%clk 0:00:04.9]} 41. Kd3 {[%clk 0:01:15.7]}
41... Rb3+ {[%clk 0:00:05.2]} 42. Rc3 {[%clk 0:01:14.5]} 42... Rb5 {[%clk
0:00:04.7]} 43. Ra3 {[%clk 0:01:13.4]} 43... Rb8 {[%clk 0:00:03.9]} 44. Rc3
{[%clk 0:01:05.1]} 44... Rb5 {[%clk 0:00:03.5]} 45. Rc6 {[%clk 0:01:03.8]} 45...
Rxa5 {[%clk 0:00:02.3]} 46. Re6+ {[%clk 0:01:03]} 46... Kf4 {[%clk 0:00:02.7]}
47. f6 {[%clk 0:00:59]} 47... Rb5 {[%clk 0:00:01.7]} 48. f7 {[%clk 0:00:56]}
48... Rb8 {[%clk 0:00:01.6]} 49. Rf6+ {[%clk 0:00:55.9]} 49... Ke5 {[%clk
0:00:01.4]} 50. f8=R {[%clk 0:00:55]} 1-0

[Event "Late-Titled-Tuesday-Blitz-August-29-2023"]
[Site "Chess.com"]
[Date "2023.08.29"]
[Round "10"]
[White "Chess_Star1234"]
[Black "Mariia89"]
[Result "0-1"]
[WhiteElo "2473"]
[BlackElo "1971"]
[TimeControl "180+1"]
[EndTime "15:52:55 PDT"]
[Termination "Mariia89 won by resignation"]

1. d4 {[%clk 0:01:14.4]} 1... Nf6 {[%clk 0:02:56.6]} 2. c4 {[%clk 0:01:14.6]}
2... c5 {[%clk 0:02:57.2]} 3. d5 {[%clk 0:01:13.1]} 3... b5 {[%clk 0:02:57.7]}
4. cxb5 {[%clk 0:01:13.7]} 4... a6 {[%clk 0:02:58.3]} 5. bxa6 {[%clk 0:01:14.5]}
5... Bxa6 {[%clk 0:02:59.1]} 6. Nc3 {[%clk 0:01:13.1]} 6... d6 {[%clk
0:02:58.1]} 7. Nf3 {[%clk 0:01:11]} 7... g6 {[%clk 0:02:58.3]} 8. g3 {[%clk
0:01:10.2]} 8... Bg7 {[%clk 0:02:58.9]} 9. Bg2 {[%clk 0:01:09.2]} 9... O-O
{[%clk 0:02:59.6]} 10. O-O {[%clk 0:01:08.7]} 10... Nbd7 {[%clk 0:03:00.3]} 11.
Bg5 {[%clk 0:01:07.3]} 11... Qa5 {[%clk 0:02:59.5]} 12. Bd2 {[%clk 0:01:07.1]}
12... Rfb8 {[%clk 0:02:59.3]} 13. Rb1 {[%clk 0:01:06.9]} 13... Ra7 {[%clk
0:02:49.1]} 14. b3 {[%clk 0:01:06.5]} 14... Ne8 {[%clk 0:02:43.3]} 15. Qc2
{[%clk 0:01:04.1]} 15... Nc7 {[%clk 0:02:43.1]} 16. a4 {[%clk 0:00:53.6]} 16...
Qb6 {[%clk 0:02:40.5]} 17. Rfc1 {[%clk 0:00:48.6]} 17... Bxc3 {[%clk 0:02:33.9]}
18. Bxc3 {[%clk 0:00:47.4]} 18... Nxd5 {[%clk 0:02:34.5]} 19. Ba1 {[%clk
0:00:44.4]} 19... Nb4 {[%clk 0:02:26]} 20. Qd2 {[%clk 0:00:38.8]} 20... e6
{[%clk 0:02:24.7]} 21. Rd1 {[%clk 0:00:30.1]} 21... d5 {[%clk 0:02:23]} 22. Qh6
{[%clk 0:00:22.8]} 22... e5 {[%clk 0:01:56.8]} 23. Nxe5 {[%clk 0:00:21.3]} 23...
Nxe5 {[%clk 0:01:56.7]} 24. Bxe5 {[%clk 0:00:21.1]} 24... f6 {[%clk 0:01:56.9]}
25. Bc3 {[%clk 0:00:19.3]} 25... Qe6 {[%clk 0:01:56.5]} 26. Bxb4 {[%clk
0:00:18.5]} 26... Qxe2 {[%clk 0:01:56.1]} 27. Bxd5+ {[%clk 0:00:18.8]} 27... Kh8
{[%clk 0:01:55.8]} 28. Bxc5 {[%clk 0:00:19.7]} 28... Rg7 {[%clk 0:01:49]} 29.
Bc4 {[%clk 0:00:18.9]} 29... Bxc4 {[%clk 0:01:43.1]} 30. bxc4 {[%clk 0:00:19.8]}
30... Re8 {[%clk 0:01:43.2]} 31. Re1 {[%clk 0:00:16.6]} 31... Qxe1+ {[%clk
0:01:41.5]} 32. Rxe1 {[%clk 0:00:17.5]} 32... Rxe1+ {[%clk 0:01:42]} 33. Kg2
{[%clk 0:00:18.4]} 33... Kg8 {[%clk 0:01:39.9]} 34. Bd4 {[%clk 0:00:18.7]} 34...
Rf7 {[%clk 0:01:39.5]} 35. Qd2 {[%clk 0:00:18.1]} 35... Re6 {[%clk 0:01:38.3]}
36. Bc3 {[%clk 0:00:18.5]} 36... Rc6 {[%clk 0:01:33.8]} 37. Qd8+ {[%clk
0:00:18.5]} 37... Kg7 {[%clk 0:01:32.8]} 38. Qd5 {[%clk 0:00:14.9]} 38... Rfc7
{[%clk 0:01:31.3]} 39. Qd4 {[%clk 0:00:11.3]} 39... Kh6 {[%clk 0:01:26.2]} 40.
Qh4+ {[%clk 0:00:10.2]} 40... Kg7 {[%clk 0:01:26.1]} 41. g4 {[%clk 0:00:10.5]}
41... h6 {[%clk 0:01:22]} 42. Bd4 {[%clk 0:00:06.9]} 42... g5 {[%clk 0:01:19.1]}
43. Qg3 {[%clk 0:00:05.7]} 43... Rxc4 {[%clk 0:01:18.7]} 44. Qe3 {[%clk
0:00:06.4]} 44... Rd7 {[%clk 0:01:12.2]} 45. Qe4 {[%clk 0:00:03.5]} 45... Rcxd4
{[%clk 0:01:10.9]} 46. Qf5 {[%clk 0:00:04.4]} 46... R4d5 {[%clk 0:01:08.4]} 47.
h3 {[%clk 0:00:04.9]} 47... Rxf5 {[%clk 0:01:07.9]} 0-1

[Event "Late-Titled-Tuesday-Blitz-August-29-2023"]
[Site "Chess.com"]
[Date "2023.08.29"]
[Round "10"]
[White "protectiago"]
[Black "KorolDimitriy75"]
[Result "0-1"]
[WhiteElo "2105"]
[BlackElo "2326"]
[TimeControl "180+1"]
[EndTime "15:52:57 PDT"]
[Termination "KorolDimitriy75 won on time"]

1. d4 {[%clk 0:02:59.7]} 1... Nf6 {[%clk 0:02:59.6]} 2. c4 {[%clk 0:02:59.9]}
2... c5 {[%clk 0:02:59.9]} 3. d5 {[%clk 0:03:00.3]} 3... b5 {[%clk 0:03:00.2]}
4. cxb5 {[%clk 0:02:59.5]} 4... a6 {[%clk 0:03:00.4]} 5. bxa6 {[%clk 0:03:00.4]}
5... Bxa6 {[%clk 0:03:01.3]} 6. g3 {[%clk 0:02:59.3]} 6... d6 {[%clk 0:03:00.5]}
7. Bg2 {[%clk 0:02:59.9]} 7... g6 {[%clk 0:03:01.2]} 8. Nf3 {[%clk 0:03:00.2]}
8... Bg7 {[%clk 0:03:01.9]} 9. O-O {[%clk 0:03:00]} 9... O-O {[%clk 0:03:02.6]}
10. Nc3 {[%clk 0:03:00.5]} 10... Nbd7 {[%clk 0:03:03.1]} 11. Qc2 {[%clk
0:03:00.9]} 11... Qa5 {[%clk 0:03:02.7]} 12. Rd1 {[%clk 0:03:00.3]} 12... Rfb8
{[%clk 0:03:02.7]} 13. Rb1 {[%clk 0:03:00.5]} 13... Ng4 {[%clk 0:02:59.9]} 14.
Bg5 {[%clk 0:03:00.9]} 14... Kf8 {[%clk 0:02:56.6]} 15. Qe4 {[%clk 0:03:00.6]}
15... Ngf6 {[%clk 0:02:40.1]} 16. Qh4 {[%clk 0:02:58.3]} 16... Rb4 {[%clk
0:02:14.6]} 17. e4 {[%clk 0:02:48.8]} 17... Rab8 {[%clk 0:02:01]} 18. b3 {[%clk
0:02:39.5]} 18... c4 {[%clk 0:01:55.2]} 19. Nd4 {[%clk 0:02:30.5]} 19... Ne5
{[%clk 0:01:20.3]} 20. Bxf6 {[%clk 0:02:08.8]} 20... Bxf6 {[%clk 0:01:20]} 21.
Qxh7 {[%clk 0:02:08.5]} 21... cxb3 {[%clk 0:01:10.5]} 22. Ne6+ {[%clk
0:01:46.7]} 22... fxe6 {[%clk 0:01:08.3]} 23. dxe6 {[%clk 0:01:44.4]} 23... bxa2
{[%clk 0:00:42.8]} 24. Rxb4 {[%clk 0:01:29.1]} 24... Qxb4 {[%clk 0:00:31.4]} 25.
Nd5 {[%clk 0:01:24.6]} 25... Qb1 {[%clk 0:00:29.3]} 26. Qh6+ {[%clk 0:01:04.9]}
26... Bg7 {[%clk 0:00:28.3]} 27. Qf4+ {[%clk 0:01:00.7]} 27... Ke8 {[%clk
0:00:16.6]} 28. Nc7+ {[%clk 0:00:43.4]} 28... Kd8 {[%clk 0:00:16.3]} 29. Rc1
{[%clk 0:00:14.7]} 29... Qxc1+ {[%clk 0:00:15.5]} 30. Qxc1 {[%clk 0:00:14.4]}
30... Rb1 {[%clk 0:00:16.2]} 0-1